Cogmind - Beta 10.1 @@@ ROGUE MODE // 2020.09.23 @ 01:03:07 Player: Tmvn Result: Destroyed by G-47 Trooper with Particle Gun Performance ------------- Evolutions (0) 0 Regions Visited (1) 200 Robots Destroyed (6) 30 Value Destroyed (152) 152 Prototype IDs (0) 0 Alien Tech Used (0) 0 Bonus (0) 0 TOTAL SCORE: 382 Bonus ------- None Cogmind --------- Core Integrity 0/250 Matter 300/300 Energy 100/100 System Corruption 0% Temperature Cool (9) Movement Core (100) Ox1 Location -10/Materials Parts ------- > --- POWER (1) -------- (None) > --- PROPULSION (2) --- (None) > --- UTILITY (2) ------ Small Storage Unit > --- WEAPON (2) ------- (None) > --- INVENTORY (6) ---- Medium Battery (200) Peak State ------------ > --- POWER ------------ Ion Engine > --- PROPULSION ------- Aluminum Leg Aluminum Leg > --- UTILITY ---------- Small Storage Unit > --- WEAPON ----------- Medium Laser Assault Rifle > --- INVENTORY -------- Ion Engine Light Treads Light Treads Compact Wheel Compact Wheel Medium Laser [Rating: 6] Favorites ----------- Power Ion Engine Engine Ion Engine Propulsion Light Treads Treads Light Treads Leg Aluminum Leg Utility Small Storage Unit Storage Small Storage Unit Weapon Assault Rifle Energy Gun Medium Laser Ballistic Gun Assault Rifle Build | -11 -10 ------- Run | Scr Mat Slots Evolved . | . . Power . | . . Propulsion . | . . Utility . | . . Weapon . | . . Parts Attached 7 | . 7 Power 1 | . 1 Engine 1 | . 1 Core . | . . Reactor . | . . Propulsion 3 | . 3 Treads 3 | . 3 Leg . | . . Wheel . | . . Hover . | . . Flight . | . . Utility . | . . Device . | . . Storage . | . . Processor . | . . Hackware . | . . Protection . | . . Artifact . | . . Weapon 3 | . 3 Energy Gun 1 | . 1 Energy Cannon . | . . Ballistic Gun 2 | . 2 Ballistic Cannon . | . . Launcher . | . . Special Weapon . | . . Impact Weapon . | . . Slashing Weapon . | . . Piercing Weapon . | . . Special Melee Weapon . | . . Unidentified Prototypes . | . . Parts Lost 9 | . 9 Power 2 | . 2 Propulsion 3 | . 3 Utility . | . . Weapon 4 | . 4 Highest Loss Streak 9 | . 9 Average Slot Usage (%) 71 | . 71 Engine 13 | . 13 Treads 16 | . 16 Storage 14 | . 14 Energy Gun 12 | . 12 Ballistic Gun 14 | . 14 Naked Turns . | . . Heaviest Build 13 | 13 13 Greatest Support 40 | 20 40 Greatest Overweight (x) 4 | . 4 Average Overweight (x) . | . . Largest Inventory Capacity 6 | 6 6 Average Capacity 6 | 6 6 Most Carried 6 | 6 6 Average Carried 4 | 6 4 Final Capacity 6 | 6 6 Final Carried 6 | 6 1 Class Distribution -------------------- 100% | Mutant Dominant Class ---------------- Mutant | -10/Materials Resources | -11 -10 ----------- Run | Scr Mat Matter Collected 329 | 200 129 Remotely . | . . Salvage Created 251 | . 251 Parts 12 | . 12 Haulers Intercepted 1 | . 1 Recyclers Shooed . | . . Parts Field Recycled . | . . Retrieved Matter . | . . Parts Self-Destructed . | . . Prevented . | . . Kills | -11 -10 ------- Run | Scr Mat Combat Hostiles Destroyed 4 | . 4 Guns 4 | . 4 Classes Destroyed 3 | . 3 Worker 1 | . 1 Hauler 1 | . 1 Grunt 4 | . 4 Best Kill Streak 2 | . 2 Combat Bots Only 2 | . 2 Max Kills in Single Turn 1 | . 1 Gunslinging . | . . Exploded . | . . Melee . | . . Uniques/NPCs Destroyed . | . . Combat | -11 -10 -------- Run | Scr Mat Damage Taken 1169 | . 1169 Core 255 | . 255 Absorbed by Shields . | . . Core Remaining (%) 100 | 100 . Volleys Fired 28 | . 28 Largest 2 | . 2 Hottest 70 | . 70 Shots Fired 52 | . 52 Gun 52 | . 52 Cannon . | . . Launcher . | . . Special . | . . Kinetic 33 | . 33 Thermal 19 | . 19 Explosive . | . . Electromagnetic . | . . Robot Hit Streak 13 | . 13 Robot Miss Streak 3 | . 3 Penetration Max . | . . Secondary Targets 1 | . 1 Max Gunslinging Chain 1 | . 1 Shots Hit Robots 40 | . 40 Core Hits 17 | . 17 Critical Hits . | . . Critical Kills . | . . Critical Parts Destroyed . | . . Melee Attacks . | . . Impact . | . . Slashing . | . . Piercing . | . . Sneak Attacks . | . . Combat Hostiles . | . . Follow-up Attacks . | . . Damage Inflicted 529 | . 529 Guns 528 | . 528 Cannons . | . . Explosions . | . . Melee . | . . Ramming 1 | . 1 Kinetic 352 | . 352 Thermal 176 | . 176 Explosive . | . . Electromagnetic . | . . Impact . | . . Slashing . | . . Piercing . | . . Highest Corruption . | . . Average Corruption . | . . Corruption Purged . | . . Overload Shots . | . . Overflow Damage . | . . Projectiles . | . . Explosions . | . . Melee . | . . Knockbacks . | . . Impact . | . . Kinetic . | . . Secondary . | . . Self-Inflicted Damage . | . . Shots . | . . Rammed 2 | . 2 Targets Rammed 2 | . 2 Kicked . | . . Crushed . | . . Highest Temperature 288 | . 288 Average Temperature 118 | . 118 Received Heat Transfer 762 | . 762 Effects 1 | . 1 Energy Bleed 1 | . 1 Siege Activations . | . . Robots Corrupted . | . . Combat Hostiles . | . . Parts Fried . | . . Impact Corruptions . | . . Robots Melted . | . . Combat Hostiles . | . . Parts Melted 1 | . 1 Heat Transferred 518 | . 518 Parts Sabotaged . | . . Parts Stolen . | . . Parts Stripped . | . . Power Chain Reactions . | . . Missiles Intercepted . | . . Alert | -11 -10 ------- Run | Scr Mat Peak Influence 84 | . 84 Initial . | . . Average 16 | . 16 Maximum Alert Level . | . . Low Security (%) 100 | 100 100 Level 1 . | . . Level 2 . | . . Level 3 . | . . Level 4 . | . . Level 5 . | . . High Security . | . . Max Security . | . . Squads Dispatched . | . . Investigation . | . . Extermination . | . . Reinforcement . | . . Assault . | . . Garrison . | . . Intercept . | . . Construction Impeded . | . . Haulers Reinforced . | . . Stealth | -11 -10 --------- Run | Scr Mat Distress Signals . | . . Communications Jammed . | . . Distress Signals . | . . Times Spotted 11 | . 11 Peak Tracking Total 5 | . 5 Tactical Retreats 2 | . 2 Traps | -11 -10 ------- Run | Scr Mat Traps Triggered . | . . Indirectly . | . . Trap Hack Attempts . | . . Triggered . | . . Disarmed . | . . Reprogrammed . | . . Reused . | . . Traps Extracted . | . . Installed . | . . Triggered . | . . Machines | -11 -10 ---------- Run | Scr Mat Machines Disabled . | . . Max in Single Turn . | . . Machines Sabotaged . | . . Garrisons Compromised . | . . Overloaded Fab Kills . | . . Fab Network Shutdowns . | . . Hacking | -11 -10 --------- Run | Scr Mat Machines Accessed 1 | . 1 Terminals 1 | . 1 Fabricators . | . . Repair Stations . | . . Recycling Units . | . . Scanalyzers . | . . Garrison Access . | . . Total Hacks 2 | . 2 Successful 1 | . 1 Failed 1 | . 1 Catastrophic . | . . Database Lockouts . | . . Manual . | . . Terminals 2 | . 2 Fabricators . | . . Repair Stations . | . . Recycling Units . | . . Scanalyzers . | . . Garrison Access . | . . Terminal Hacks 1 | . 1 Patrol Status 1 | . 1 Fabricator Hacks . | . . Repair Station Hacks . | . . Recycling Unit Hacks . | . . Scanalyzer . | . . Garrison Access Hacks . | . . Unauthorized Hacks . | . . Terminals . | . . Fabricators . | . . Repair Stations . | . . Recycling Units . | . . Scanalyzers . | . . Garrison Access . | . . Data Cores Recovered . | . . Used . | . . Hacking Detections 1 | . 1 Full Trace Events . | . . Feedback Events . | . . Feedback Blocked . | . . Robot Schematics Acquired . | . . Robots Built . | . . Matter . | . . Time . | . . Total Robot Build Rating . | . . Part Schematics Acquired . | . . Parts Built . | . . Matter . | . . Time . | . . Total Part Build Rating . | . . Parts Repaired . | . . Time . | . . Parts Recycled . | . . Recycled Matter . | . . Retrieved Matter . | . . Retrieved Components . | . . Parts Scanalyzed . | . . Part Schematics Acquired . | . . Parts Damaged . | . . Bothacking | -11 -10 ------------ Run | Scr Mat Used RIF Installer . | . . Robots Hacked . | . . Non-combat . | . . Combat . | . . Robot Hacks Applied . | . . Relay Couplers Released . | . . Robots Rewired . | . . Allies Hacked . | . . Hacks Repelled . | . . Allies | -11 -10 -------- Run | Scr Mat Total Allies . | . . Largest Group . | . . Highest-Rated Group . | . . Highest-Rated Ally . | . . Total Orders . | . . Ally Attacks . | . . Total Damage . | . . Kills . | . . Allies Corrupted . | . . Allies Melted . | . . Intel | -11 -10 ------- Run | Scr Mat Robot Analysis Total . | . . Derelict Logs Recovered . | . . Drone Launches . | . . Drone Recoveries . | . . Exploration | -11 -10 ------------- Run | Scr Mat Turns Passed 468 | 2 466 Spaces Moved 234 | 2 232 Core 14 | . 14 Treads 213 | . 213 Legs 7 | 2 5 Wheels . | . . Hover . | . . Flight . | . . Fastest Speed 100 | 120 100 Average Speed 159 | 120 160 Slowest Speed 250 | 120 250 Overloaded Moves . | . . Propulsion Burnouts . | . . Robots Hopped . | . . Cave-ins Triggered . | . . Exploration Rate (%) 18 | 2 35 Regions Visited 1 Branch Regions . Pre-discovered Areas . | . . Known Exits Taken . | . . Unknown Exits Taken 1 | 1 . Scrap Searched . | . . Spaces Dug . | . . Terrain Destroyed . | . . Melee . | . . Projectile . | . . AOE . | . . Terrain Rammed . | . . Walls Destroyed . | . . Machines Disabled . | . . Actions | -11 -10 --------- Run | Scr Mat Total 275 | 1 274 Wait . | . . Move 233 | 1 232 Hop . | . . Pick Up 1 | . 1 Fast Attach 1 | . 1 Attach 5 | . 5 Detach . | . . Swap 1 | . 1 Drop 4 | . 4 Fire 28 | . 28 Melee . | . . Ram . | . . Kick . | . . Crush 2 | . 2 Escape Stasis . | . . Rewire . | . . Trap . | . . Miscellaneous . | . . Route ------- -11/Scrapyard -10/Materials (discovered 1 exit: [*Mat]) History --------- Turn | Location | Event 1 | -11/Scrapyard | Discovered new exit (range 1) 3 | -11/Scrapyard | Entered Materials 316 | -10/Materials | Build established: Mutant 428 | -10/Materials | Core integrity fell below 50% 450 | -10/Materials | Core integrity fell below 20% 463 | -10/Materials | Discovered new exit (range 16) 469 | -10/Materials | Destroyed by G-47 Trooper with Particle Gun Last Messages --------------- 00414_ Ion Engine destroyed. 00416_ Lgt. Treads destroyed. 00424_ G-34 Mercenary destroyed. 00427_ R-06 Scavenger collects Heat Sink. 00429_ Overheating: Energy bleed (-40). 00429_ R-06 Scavenger collects Ion Engine. 00430_ Assault Rifle destroyed. 00432_ R-06 Scavenger collects Aluminum Leg. 00434_ G-34 Mercenary destroyed. 00434_ R-06 Scavenger collects Aluminum Leg. 00435_ R-06 Scavenger collects Sml. Laser. 00436_ Acquired 48 matter. 00437_ Ion Engine destroyed. 00441_ K-01 Serf collects debris. 00441_ Assault Rifle destroyed. 00443_ Acquired 15 matter. 00445_ K-01 Serf collects debris. 00449_ Slammed into K-01 Serf. 00462_ Lgt. Treads destroyed. 00463_ EXIT=FOUND Map ----- +----------------------------------------------------+ | ####+######??####+####???????????????????????????? | | #### #######?# # ???????????????????????? | | #?# """ # ????????????????????? | | ! #?# """"" # ???????????????????? | | % T #?# """"" # ???????????????????? | | ###![[ #?#%""""" # ????????????????????? | | ??#! [ #?# """ # ?????????????????????? | | ??#[[ = ### # #?????????????????????? | | ??# + # #?????????????????????? | | ??# ### # #?????????????????????? | | ??###### #?# # #?????????????????????? | | ??????## #?# # t #?????????????????????? | | ??????# #######+## #?????????????????????? | | ??????# #?????????????????????? | | ??? + #?????????????????????? | | ??????# % g #?????????????????????? | | ??????# ##+###/### #?????????????????????? | | ??????## ## ^ %%#?##g ##?????????????????????? | | ???????# ## % #??# #??????????????????????? | | ???????# ## #??# #??????????????????????? | | ???????# ## "" #??# #??????????????????????? | | ???????# ## """ #??# #??????????????????????? | | ???????# ## """ #??# #??????????????????????? | | ???????? ?########??# #??????????????????????? | | ??????????????????????# #??????????????????????? | | ??????????????????????# @#??????????????????????? | | ??????????????????????# #??????????????????????? | | ??????????????????????# #??????????????????????? | | ??????????????????????# t??????????????????????? | | ??????????????????????# #??????????????????????? | | ??????????????????????# #??????????????????????? | | ??????????????????????# #??????????????????????? | | ??????????????????????# +??????????????????????? | | ??????????????????????+ #??????????????????????? | | ??????????????????????# ???????????????????????? | | ??????????????????????# < ???????????????????????? | | ??????????????????????# ???????????????????????? | | ??????????????????????####???????????????????????? | | ?????????????????????????????????????????????????? | | ?????????????????????????????????????????????????? | | ?????????????????????????????????????????????????? | | ?????????????????????????????????????????????????? | | ?????????????????????????????????????????????????? | | ?????????????????????????????????????????????????? | | ?????????????????????????????????????????????????? | | ?????????????????????????????????????????????????? | | | | | | | | | +----------------------------------------------------+ Best States ------------- Heat Dissipation 25 Energy Generation 10 Energy Capacity 250 Matter Stores 300 Matter Capacity 300 Sight Range 16 Terrain Scan Density 10 Evasion (%) 40 Recoil Reduction 2 Item Schematics ----------------- None Robot Schematics ------------------ None Fabricated ------------ Nothing Alien Tech Used ----------------- None Achievements -------------- None Challenges ------------ None Game ------ Seed DecoyBarrageDriver Manual? 0 Play Time 00:06:04 Cumulative 15.0 hours Start 2020.09.23 @ 00:57:41 End 2020.09.23 @ 01:03:07 Sessions 1 Manual Loads 0 Difficulty Rogue Special Mode None Game No. 35 Rogue 35 Adventurer 0 Explorer 0 Win Type - Total 0 Types 0/0/0/0/0/0/0/0/0 Lore% 20 Gallery% 26 Achievement% 23 Wizard Run 0 Options --------- ASCII 1 Keyboard 1 Movement Vi Keybinds 0 Fullscreen 2 Font 24/Terminus Map View 76x50 Tactical HUD 1 Map Filters SATURATION(70) Filters SATURATION(65)|SHIFT_HUE(10) Steam 1 RUN: 30afcb0e-5388-4b06-b2ab-0ced587ba89a